Cogmind - Beta 16.1 @@@ ROGUE MODE // 2026.03.02 @ 19:18:33 Player: Kakograf Result: Self-destructed Performance ------------- Evolutions (4) 2000 Regions Visited (5) 1000 Robots Destroyed (8) 40 Value Destroyed (360) 360 Prototype IDs (0) 0 Alien Tech Used (0) 0 Bonus (256) 256 TOTAL SCORE: 3656 Bonus ------- Pacifist 270 Friendly Fire -14 Cogmind --------- Core Integrity 440/850 Matter 300/300 Energy 100/100 System Corruption 1% Temperature Cool (0) Movement Core (150) Ox2 Location -6/Extension Parts ------- > --- POWER (2) -------- (None) > --- PROPULSION (3) --- (None) > --- UTILITY (6) ------ Small Storage Unit Improved Melee Analysis Suite Microactuators > --- WEAPON (4) ------- (None) > --- INVENTORY (8) ---- Micro Nuclear Core Micro Nuclear Core Carbon-fiber Leg Carbon-fiber Leg Hover Unit Hover Unit Reaction Control System Peak State ------------ > --- POWER ------------ Reinforced Deuterium Engine Light Angular Momentum Engine > --- PROPULSION ------- Carbon-fiber Leg Carbon-fiber Leg Flexi-carbon Leg > --- UTILITY ---------- Improved Heat Sink Small Storage Unit Improved Melee Analysis Suite Improved Reaction Control System Focal Shield System Restoration Module > --- WEAPON ----------- Greatsword Greatsword > --- INVENTORY -------- Micro Nuclear Core Micro Nuclear Core Carbon-fiber Leg Carbon-fiber Leg Hover Unit Hover Unit Microactuators Improved Light Armor Plating [Rating: 60] Favorites ----------- Power Ion Engine Engine Ion Engine Propulsion Aluminum Leg Leg Aluminum Leg Hover Unit Hover Unit Utility Small Storage Unit Device Improved Heat Sink Storage Small Storage Unit Processor Improved Melee Analysis Suite Protection Improved Light Armor Plating Weapon Greatsword Energy Gun Medium Laser Ballistic Gun Battle Rifle Slashing Weapon Greatsword Build | -11 -10 -10 -9 -6 -6 ------- Run | Yrd Mat Sub Scr Fac Ext Slots Evolved 8 | . . . . 8 . Power 1 | . . . . 1 . Propulsion 1 | . . . . 1 . Utility 4 | . . . . 4 . Weapon 2 | . . . . 2 . Parts Attached 27 | 6 . 1 . 20 . Power 4 | 1 . . . 3 . Engine 4 | 1 . . . 3 . Core . | . . . . . . Reactor . | . . . . . . Propulsion 9 | 2 . . . 7 . Treads . | . . . . . . Leg 6 | 2 . . . 4 . Wheel . | . . . . . . Hover 3 | . . . . 3 . Flight . | . . . . . . Utility 8 | 1 . . . 7 . Device 5 | . . . . 5 . Storage 1 | 1 . . . . . Processor 1 | . . . . 1 . Hackware . | . . . . . . Protection 1 | . . . . 1 . Artifact . | . . . . . . Weapon 6 | 2 . 1 . 3 . Energy Gun 3 | 2 . 1 . . . Energy Cannon . | . . . . . . Ballistic Gun 1 | . . . . 1 . Ballistic Cannon . | . . . . . . Launcher . | . . . . . . Special Weapon . | . . . . . . Impact Weapon . | . . . . . . Slashing Weapon 2 | . . . . 2 . Piercing Weapon . | . . . . . . Special Melee Weapon . | . . . . . . Unidentified Prototypes . | . . . . . . Parts Lost 12 | . . 1 . 1 10 Power 2 | . . . . . 2 Propulsion 4 | . . . . 1 3 Utility 3 | . . . . . 3 Weapon 3 | . . 1 . . 2 Highest Loss Streak 10 | . . 1 . 1 10 To Critical Strikes . | . . . . . . Average Backups 6 | 1 4 5 7 5 7 Power 1 | . 1 1 1 1 2 Propulsion 2 | . 2 3 3 3 4 Utility . | . . 1 1 . 1 Weapon 1 | . 1 . 2 . . Tool/Special . | . . . . . . Unused Backups 6 | . 2 . . . 4 Power 2 | . . . . . 2 Propulsion 3 | . 2 . . . 1 Utility 1 | . . . . . 1 Weapon . | . . . . . . Tool/Special . | . . . . . . Average Slot Usage (%) 67 | . 85 85 57 77 80 Engine 13 | . 14 14 14 12 12 Leg 23 | . 28 28 28 13 18 Hover 1 | . . . . 5 . Device 6 | . . . . 18 24 Storage 11 | . 14 14 14 6 6 Processor 1 | . . . . 4 6 Energy Gun 4 | . 28 28 . 2 . Slashing Weapon 3 | . . . . 10 11 Peak Build Rating 60 | 6 6 6 6 60 59 Average Rating 17 | 4 6 5 5 43 54 On Entrance 13 | . 6 6 6 5 59 Avg Prop Armor Cover (%) . | . . . . . . Naked Turns . | . . . . . . Heaviest Build 46 | 14 14 14 13 46 45 Greatest Support 50 | 20 20 20 20 50 50 Greatest Overweight (x) 7 | 3 . . . 2 7 Average Overweight (x) . | . . . . . . Largest Inventory Capacity 8 | 8 8 8 8 8 8 Average Capacity 7 | 7 8 8 8 8 8 Most Carried 8 | 4 6 6 8 8 7 Average Carried 6 | 1 4 5 7 5 7 Final Capacity 8 | 8 8 8 8 8 8 Final Carried 8 | 4 6 6 8 7 7 Class Distribution -------------------- 70% | Mutant 21% | Scavenger-Gladiator 3% | Gladiator Dominant Class ---------------- Mutant | -10/Materials Mutant | -10/Subcaves Mutant | -9/Scraptown Scavenger-Gladiator | -6/Factory Scavenger-Gladiator | -6/Extension Resources | -11 -10 -10 -9 -6 -6 ----------- Run | Yrd Mat Sub Scr Fac Ext Matter Collected 535 | 260 . 10 . 265 . Remotely . | . . . . . . Salvage Created 409 | . . . . 409 . Parts 17 | . . . . 17 . Haulers Intercepted . | . . . . . . Recyclers Shooed . | . . . . . . Parts Field Recycled . | . . . . . . Retrieved Matter . | . . . . . . Parts Self-Destructed 6 | . . 6 . . . Prevented 1 | . . 1 . . . Parts Restored . | . . . . . . Kills | -11 -10 -10 -9 -6 -6 ------- Run | Yrd Mat Sub Scr Fac Ext Combat Hostiles Destroyed 7 | . . . . 7 . Melee 7 | . . . . 7 . Classes Destroyed 5 | . . . . 5 . Watcher 1 | . . . . 1 . Swarmer 1 | . . . . 1 . Grunt 4 | . . . . 4 . Brawler 1 | . . . . 1 . Programmer 1 | . . . . 1 . Best Kill Streak 2 | . . . . 2 . Combat Bots Only 2 | . . . . 2 . Max Kills in Single Turn 1 | . . . . 1 . Gunslinging . | . . . . . . Exploded . | . . . . . . Melee 1 | . . . . 1 . Uniques/NPCs Destroyed . | . . . . . . Combat | -11 -10 -10 -9 -6 -6 -------- Run | Yrd Mat Sub Scr Fac Ext Hostile Shots Fired 178 | . . 14 . 44 120 Missed 78 | . . 5 . 10 63 Hits 100 | . . 9 . 34 57 Melee 1 | . . . . 1 . Projectile 99 | . . 9 . 33 57 Critical Strikes 2 | . . . . 2 . Damage Taken 1621 | . . 213 . 585 823 Core 475 | . . 65 . 57 353 Absorbed by Shields . | . . . . . . Ignored by Resistances 28 | . . . . 16 12 Core Remaining (%) 87 | 100 . . 74 . . Volleys Fired 7 | . . 7 . . . Largest 2 | . . 2 . . . Hottest 90 | . . 90 . . . Shots Fired 14 | . . 14 . . . Gun 14 | . . 14 . . . Cannon . | . . . . . . Launcher . | . . . . . . Special . | . . . . . . Kinetic . | . . . . . . Thermal 10 | . . 10 . . . Explosive . | . . . . . . Electromagnetic 4 | . . 4 . . . Robot Hit Streak 7 | . . 7 . . . Robot Miss Streak 2 | . . 2 . . . Penetration Max . | . . . . . . Secondary Targets . | . . . . . . Shots Hit Robots 29 | . . 10 . 18 1 Core Hits 11 | . . 2 . 9 . Critical Kills . | . . . . . . Critical Parts Destroyed . | . . . . . . Critical Strikes 3 | . . . . 3 . Sever 3 | . . . . 3 . Melee Attacks 29 | . . . . 27 2 Impact . | . . . . . . Slashing 29 | . . . . 27 2 Piercing . | . . . . . . Sneak Attacks . | . . . . . . Combat Hostiles . | . . . . . . Follow-up Attacks 2 | . . . . 2 . Damage Inflicted 1110 | . . 127 . 924 59 Guns 127 | . . 127 . . . Cannons . | . . . . . . Explosions . | . . . . . . Melee 983 | . . . . 924 59 Ramming . | . . . . . . Kinetic . | . . . . . . Thermal 84 | . . 84 . . . Explosive . | . . . . . . Electromagnetic 43 | . . 43 . . . Impact . | . . . . . . Slashing 983 | . . . . 924 59 Piercing . | . . . . . . Highest Corruption 5 | . . . . 5 1 Average Corruption 3 | . . . . 4 1 Corruption Purged 5 | . . . . 5 . Corruption Blocked . | . . . . . . Effects 13 | . . . . 11 2 Message Errors 2 | . . . . 2 . Matter Fused 4 | . . . . 4 . Heat Flow Errors 1 | . . . . 1 . Energy Discharges 4 | . . . . 2 2 Data Loss (minor) 1 | . . . . 1 . Data Loss (major) 1 | . . . . 1 . Overload Shots . | . . . . . . Overflow Damage 61 | . . . . 37 24 Projectiles . | . . . . . . Explosions . | . . . . . . Melee 61 | . . . . 37 24 Knockbacks . | . . . . . . Impact . | . . . . . . Kinetic . | . . . . . . Secondary . | . . . . . . Self-Inflicted Damage . | . . . . . . Shots . | . . . . . . Rammed . | . . . . . . Targets Rammed . | . . . . . . Kicked . | . . . . . . Crushed . | . . . . . . Highest Temperature 153 | . . . . 153 . Average Temperature 88 | . . . . 88 . Received Heat Transfer 414 | . . 42 . 204 168 Siege Activations . | . . . . . . Martial Activations . | . . . . . . Shielding Activations . | . . . . . . Robots Disrupted . | . . . . . . Combat Hostiles . | . . . . . . Robots Corrupted . | . . . . . . Combat Hostiles . | . . . . . . Parts Fried . | . . . . . . Impact Corruptions . | . . . . . . Robots Melted . | . . . . . . Combat Hostiles . | . . . . . . Parts Melted . | . . . . . . Heat Transferred 235 | . . 235 . . . Parts Sabotaged . | . . . . . . Parts Stolen . | . . . . . . Parts Stripped . | . . . . . . Power Chain Reactions . | . . . . . . Alert | -11 -10 -10 -9 -6 -6 ------- Run | Yrd Mat Sub Scr Fac Ext Maximum Alert Level . | . . . . . . Low Security (%) 100 | 100 100 . . 100 100 Level 1 . | . . . . . . Level 2 . | . . . . . . Level 3 . | . . . . . . Level 4 . | . . . . . . Level 5 . | . . . . . . High Security . | . . . . . . Max Security . | . . . . . . Peak Influence 75 | . . . . 75 6 Initial 6 | . . . . . 6 Average 12 | . . . . 19 . Influence Increases 242 | . . . . 242 . Destroy 0b10 Robot/C 140 | . . . . 140 . Destroy 0b10 Robot/NC 5 | . . . . 5 . Destroy Leader 22 | . . . . 22 . Lose Combat Pursuer 75 | . . . . 75 . Influence Decreases 242 | . . . . 228 14 Entered New Map 8 | . . . . . 8 Time Decay 224 | . . . . 218 6 Lost Part 10 | . . . . 10 . Squads Dispatched 1 | . . . . 1 . Investigation . | . . . . . . Extermination 1 | . . . . 1 . Reinforcement . | . . . . . . Assault . | . . . . . . Garrison . | . . . . . . Intercept . | . . . . . . Searches Triggered . | . . . . . . Construction Impeded . | . . . . . . Haulers Reinforced . | . . . . . . Active Scanning Responses . | . . . . . . Cargo Convoy Interrupts . | . . . . . . Stealth | -11 -10 -10 -9 -6 -6 --------- Run | Yrd Mat Sub Scr Fac Ext Distress Signals 2 | . . . . 2 . Communications Jammed . | . . . . . . Distress Signals . | . . . . . . Times Spotted 23 | . . 5 . 12 6 Peak Tracking Total 5 | . . 2 . 4 5 Tactical Retreats 4 | . . . . 4 . Traps | -11 -10 -10 -9 -6 -6 ------- Run | Yrd Mat Sub Scr Fac Ext Traps Triggered . | . . . . . . Indirectly . | . . . . . . Trap Hack Attempts . | . . . . . . Triggered . | . . . . . . Disarmed . | . . . . . . Reprogrammed . | . . . . . . Reused . | . . . . . . Traps Extracted . | . . . . . . Installed . | . . . . . . Triggered . | . . . . . . Machines | -11 -10 -10 -9 -6 -6 ---------- Run | Yrd Mat Sub Scr Fac Ext Machines Disabled . | . . . . . . Max in Single Turn . | . . . . . . Machines Repaired . | . . . . . . Machines Dismantled . | . . . . . . Machines Sabotaged . | . . . . . . Overloaded Fab Kills . | . . . . . . Hacking | -11 -10 -10 -9 -6 -6 --------- Run | Yrd Mat Sub Scr Fac Ext Machines Accessed 2 | . . . 1 1 . Terminals 1 | . . . . 1 . Fabricators . | . . . . . . Repair Stations . | . . . . . . Recycling Units . | . . . . . . Scanalyzers . | . . . . . . Garrison Access . | . . . . . . Total Hacks 2 | . . . 1 1 . Successful 2 | . . . 1 1 . Failed . | . . . . . . Catastrophic . | . . . . . . Database Lockouts . | . . . . . . Manual . | . . . . . . Terminals 1 | . . . . 1 . Fabricators . | . . . . . . Repair Stations . | . . . . . . Recycling Units . | . . . . . . Scanalyzers . | . . . . . . Garrison Access . | . . . . . . Terminal Hacks 2 | . . . 1 1 . Record 1 | . . . 1 . . Open Door 1 | . . . . 1 . Fabricator Hacks . | . . . . . . Repair Station Hacks . | . . . . . . Recycling Unit Hacks . | . . . . . . Scanalyzer . | . . . . . . Garrison Access Hacks . | . . . . . . Unauthorized Hacks . | . . . . . . Terminals . | . . . . . . Fabricators . | . . . . . . Repair Stations . | . . . . . . Recycling Units . | . . . . . . Scanalyzers . | . . . . . . Garrison Access . | . . . . . . Data Cores Recovered . | . . . . . . Used . | . . . . . . Hacking Detections . | . . . . . . Full Trace Events . | . . . . . . Feedback Events . | . . . . . . Feedback Blocked . | . . . . . . Robot Schematics Acquired . | . . . . . . Robots Built . | . . . . . . Authchips . | . . . . . . Time . | . . . . . . Total Robot Build Rating . | . . . . . . Part Schematics Acquired . | . . . . . . Parts Built . | . . . . . . Authchips . | . . . . . . Time . | . . . . . . Total Part Build Rating . | . . . . . . Part Studies Acquired . | . . . . . . Parts Repaired . | . . . . . . Time . | . . . . . . Parts Recycled . | . . . . . . Recycled Matter . | . . . . . . Retrieved Matter . | . . . . . . Retrieved Components . | . . . . . . Parts Scanalyzed . | . . . . . . Part Schematics Acquired . | . . . . . . Parts Damaged . | . . . . . . Bothacking | -11 -10 -10 -9 -6 -6 ------------ Run | Yrd Mat Sub Scr Fac Ext Used RIF Installer . | . . . . . . Robots Hacked . | . . . . . . Non-combat . | . . . . . . Combat . | . . . . . . Robot Hacks Applied . | . . . . . . Relay Couplers Released . | . . . . . . Fabnet Peak Effective % . | . . . . . . Robots Rewired . | . . . . . . Allies Hacked . | . . . . . . Hacks Repelled . | . . . . . . Allies | -11 -10 -10 -9 -6 -6 -------- Run | Yrd Mat Sub Scr Fac Ext Total Allies . | . . . . . . Largest Group . | . . . . . . Highest-Rated Group . | . . . . . . Highest-Rated Ally . | . . . . . . Total Orders . | . . . . . . Ally Attacks . | . . . . . . Total Damage . | . . . . . . Kills . | . . . . . . Allies Corrupted . | . . . . . . Allies Melted . | . . . . . . Intel | -11 -10 -10 -9 -6 -6 ------- Run | Yrd Mat Sub Scr Fac Ext Active Infowar (turns) . | . . . . . . Robot Analysis Total . | . . . . . . Derelict Logs Recovered . | . . . . . . Drone Launches . | . . . . . . Drone Recoveries . | . . . . . . Exploration | -11 -10 -10 -9 -6 -6 ------------- Run | Yrd Mat Sub Scr Fac Ext Turns Passed 2803 | 79 131 218 1524 668 183 Spaces Moved 2102 | 53 106 152 1269 378 144 Core 13 | 11 . . . . 2 Treads . | . . . . . . Legs 1947 | 42 106 152 1269 236 142 Wheels . | . . . . . . Hover 142 | . . . . 142 . Flight . | . . . . . . Fastest Speed 50 | 50 120 120 120 112 120 Average Speed 122 | 126 120 120 120 134 123 Slowest Speed 400 | 200 120 120 120 190 400 Overloaded Moves . | . . . . . . Propulsion Burnouts . | . . . . . . Robots Hopped . | . . . . . . Potential Cave-ins . | . . . . . . Cave-ins Triggered . | . . . . . . Exploration Rate (%) 24 | 5 27 18 60 11 25 Regions Visited 5 Branch Regions 3 Pre-discovered Areas . | . . . . . . Known Exits Taken . | . . . . . . Unknown Exits Taken 5 | 1 1 1 1 1 . Scrap Searched . | . . . . . . Spaces Dug . | . . . . . . Terrain Destroyed . | . . . . . . Melee . | . . . . . . Projectile . | . . . . . . AOE . | . . . . . . Terrain Rammed . | . . . . . . Walls Destroyed . | . . . . . . Machines Disabled . | . . . . . . Actions | -11 -10 -10 -9 -6 -6 --------- Run | Yrd Mat Sub Scr Fac Ext Total 2264 | 62 111 173 1271 501 146 Wait 64 | . . 13 1 50 . Move 2097 | 52 105 151 1268 377 144 Hop . | . . . . . . Pick Up 20 | 4 4 1 . 11 . Fast Attach 12 | 6 . . . 6 . Attach 13 | . . 1 . 12 . Detach 4 | . . . 2 2 . Swap 7 | . . . . 7 . Drop 13 | . 2 . . 11 . Fire 7 | . . 7 . . . Melee 27 | . . . . 25 2 Ram . | . . . . . . Kick . | . . . . . . Crush . | . . . . . . Escape Stasis . | . . . . . . Rewire . | . . . . . . Trap . | . . . . . . Miscellaneous . | . . . . . . Route ------- -11/Scrapyard -10/Materials (discovered 2 exits: [*Min] / [*Sub]) -10/Subcaves -9/Scraptown -6/Factory -6/Extension History --------- Turn | Location | Event 40 | -11/Scrapyard | Discovered new exit (range 16) 80 | -11/Scrapyard | Entered Materials 81 | -10/Materials | Met a group of wandering Federalists 142 | -10/Materials | Discovered new exit (range 8) 208 | -10/Materials | Discovered new exit (range 5) 211 | -10/Materials | Entered Subcaves 211 | -10/Subcaves | Accompanied by 1 ally 212 | -10/Subcaves | Continued accompanying wandering Federalists (3) 302 | -10/Subcaves | Build established: Mutant 362 | -10/Subcaves | Shifting Twisted Machinery released Sub. Shrapnel Launcher 378 | -10/Subcaves | Shifting Twisted Machinery released Battle Rifle 422 | -10/Subcaves | Wandering Federalist uncovered a shortcut to Scraptown 429 | -10/Subcaves | Entered Scraptown 748 | -9/Scraptown | Visited IN-MT5's Study 787 | -9/Scraptown | Visited Comm Corps 874 | -9/Scraptown | Visited Red Mages 928 | -9/Scraptown | Visited Bundlers 982 | -9/Scraptown | Visited Cyclists 1036 | -9/Scraptown | Visited UFD Registry 1054 | -9/Scraptown | Visited Awakened 1148 | -9/Scraptown | Discovered new exit (range 5) 1484 | -9/Scraptown | Visited TADAMA 1953 | -9/Scraptown | Entered Factory 1953 | -6/Factory | Evolved 8 slots: Power x1, Propulsion x1, Utility x4, Weapon x2 2476 | -6/Factory | Build established: Scavenger-Gladiator 2616 | -6/Factory | Discovered new exit (range 5) 2621 | -6/Factory | Entered Extension 2768 | -6/Extension | Spotted B-75 Beast 2775 | -6/Extension | Spotted B-75 Beast 2804 | -6/Extension | Self-destructed Last Messages --------------- System corrupted: Energy discharge (-98). K-01 Serf enters Transfer Station. System corrupted: Energy discharge (-108). T-07 Excavator Wheel blasted off. T-07 Excavator knocked back. Greatsword destroyed. K-01 Serf destroyed. Focal Shield destroyed. Door Terminal disabled. Lgt. Angular Momentum Engine destroyed. Imp. Reaction Control System destroyed. R-10 Processor collects Wheel. Greatsword destroyed. R-10 Processor collects Wheel. Flexi-carbon Leg destroyed. Carbon-fiber Leg destroyed. Knocked back. Carbon-fiber Leg destroyed. Imp. Heat Sink destroyed. Rnf. Deuterium Engine destroyed. Map ----- +----------------------------------------------------+ | ?????????????????????????????????????????????????? | | ?????????????????????????????????????????????????? | | ?????????????????????????????????????????????????? | | ?????????????????????????????????????????????????? | | ?????????????????????????????????????????????????? | | ?????????????????????????????????????????????????? | | ?????????????????????????????????????????????????? | | ????????????????????#????????????????????????????? | | ??????????????????? #????????????????????????????? | | ??????????????????? #??##?##?????????????????????? | | ?????????????????## ### ## ##????????????????????? | | ????????????????#"" "" "" "?????????????????? | | ????????????????# " " " " #???????????????? | | ????????????????# w #???????????????? | | ?????????###????# R #???????????????? | | ####"#####"###### #####???????????? | | ???????????? | | ??????????? | | ??????????? | | % Y Y ???????????? | | % uk ?????????????? | | ################# ;#??????????????? | | ??????????????### #???????????????? | | ??????????????# ;% BB ##??????????????? | | ????????????????#% BB % ;#??????????????? | | ????????????????# BB %@ #???????????????? | | ????????????????#;###BB#"""#######???????????????? | | ????????????????# ??####?????????????????????????? | | ????????????????##???????????????????????????????? | | | | | | | | | | | | | | | | | | | | | | | | | | | | | | | | | | | | | | | | | | | +----------------------------------------------------+ Best States ------------- Heat Dissipation 51 Energy Generation 29 Energy Capacity 340 Matter Stores 300 Matter Capacity 300 Sight Range 16 Terrain Scan Density 10 Armor Coverage 150 Resistance: KI 20 Melee Speed Boost 20 Evasion (%) 65 Melee Accuracy 6 Item Schematics ----------------- None Robot Schematics ------------------ None Fabricated ------------ Nothing Repaired ---------- Nothing Studied --------- None Alien Tech Used ----------------- None Achievements -------------- Civilization 2243 Ew, Corruption Strength In Numbers Challenges ------------ None Game ------ Seed CryofiberHardenedGun Manual? 0 Play Time 00:34:28 Cumulative 18.6 hours Start 2026.03.02 @ 18:42:12 End 2026.03.02 @ 19:18:33 Sessions 1 Manual Loads 0 Difficulty Rogue Special Mode None Game No. 27 Rogue 27 Adventurer 0 Explorer 0 Win Type - Total 0 Types 0/0/0/0/0/0/0/0/0/0 Lore% 5 Gallery% 18 Achievement% 15 Wizard Run 0 Options --------- Layout 1 ASCII 0 Keyboard 1 Movement Arrows Keybinds 0 Fullscreen 1 Font 24/Smallcaps Map View 50x35 Zoom Use 0% Tactical HUD 0 Map Filters NONE Filters NONE Steam 1 RUN: 6b5853b7-97d8-45e9-8d16-333ab6aeb6c8